bitfinex/quotes_ETHUSD_20220112
["timestamp","ask_amount","ask_price","bid_price","bid_amount"]
[1642018259765,0.00454739,3381.4,3381.0,1.4182]
[1642018259966,0.00454739,3381.4,3381.0,0.4182]
[1642018260171,0.12227896,3381.3,3381.0,0.1182]
[1642018260367,0.00397896,3381.3,3381.0,0.1182]
[1642018260567,0.00341054,3381.2,3381.0,0.1182]
[1642018260966,0.00284212,3381.1,3381.0,0.1182]
[1642018261367,0.00284212,3381.1,3380.9,3.90607535]
[1642018261667,1.63198145,3381.8,3381.0,3.06890947]
[1642018262107,0.00625266,3381.7,3381.0,3.06890947]
[1642018262303,0.00625266,3381.7,3381.2,0.73924]
[1642018262503,0.00568423,3381.6,3381.2,1.03924]
[1642018262903,0.00511581,3381.5,3381.3,2.69511834]
[1642018263106,0.00511581,3381.5,3381.3,2.70350329]
[1642018263307,0.00454739,3381.4,3381.3,3.44269329]
[1642018263508,0.00454739,3381.4,3381.3,8.94269329]
[1642018263710,0.00454739,3381.4,3381.3,9.06089329]
[1642018264811,0.00454739,3381.4,3381.3,3.86089329]
[1642018265014,4.739e-05,3381.4,3381.3,4.28589329]
[1642018265223,5.3657,3382.8,3382.1,0.73897]
[1642018265414,5.3657,3382.8,3382.2,0.4434026]
[1642018265611,0.00511581,3382.3,3382.2,0.4434026]
[1642018266154,0.00511581,3382.3,3382.2,1.94982061]
[1642018266755,0.00511581,3382.3,3382.2,1.50641801]
[1642018267158,0.00511581,3382.3,3382.1,0.3]
[1642018267560,1.49164677,3382.0,3381.6,0.8868719]
[1642018267761,1.49164677,3382.0,3381.7,0.1182]
[1642018267960,0.00284212,3381.9,3381.7,0.1182]
[1642018268361,0.00227369,3381.8,3381.7,0.1182]
[1642018269362,0.00227369,3381.8,3381.5,1.14375688]
[1642018269811,0.00170527,3381.7,3381.5,1.14375688]
[1642018270013,0.00170527,3381.7,3381.5,2.18293688]
[1642018270318,0.00113684,3381.6,3381.5,2.18293688]
[1642018272916,0.00113684,3381.6,3381.5,6.03725768]
[1642018273751,0.00113684,3381.6,3381.5,3.30113688]
[1642018275361,0.00113684,3381.6,3381.5,5.80113688]
[1642018275560,0.00113684,3381.6,3381.5,6.06413243]
[1642018276359,0.00113684,3381.6,3381.5,3.30113688]
[1642018277909,0.00113684,3381.6,3381.5,3.18293688]
[1642018278313,0.00113684,3381.6,3381.5,6.03293688]
[1642018278610,0.00113684,3381.6,3381.5,3.18293688]
[1642018279214,0.00113684,3381.6,3381.5,5.92744299]
[1642018280765,0.00113684,3381.6,3381.5,3.18293688]
[1642018281359,0.00113684,3381.6,3381.5,5.91656787]
[1642018282162,0.00113684,3381.6,3381.5,3.18293688]
[1642018284166,0.00113684,3381.6,3381.5,5.95293549]
[1642018284366,0.00113684,3381.6,3381.5,11.0593791]
[1642018284613,0.00113684,3381.6,3381.5,11.4843791]
[1642018284811,1.10455001,3381.8,3381.5,11.4843791]
[1642018284812,1.10455001,3381.8,3381.6,7.0785436]
[1642018285013,1.10455001,3381.8,3381.7,9.0826859]
[1642018285215,1.50174633,3382.7,3382.2,1.1400906]
[1642018285419,1.50174633,3382.7,3382.4,0.73891]
[1642018285613,1.50174633,3382.7,3382.5,2.86200778]
[1642018285815,5.4748,3382.8,3382.5,2.86200778]
[1642018286019,5.3566,3382.8,3382.5,2.86200778]
[1642018286217,0.00625266,3382.7,3382.5,2.86200778]
[1642018286418,0.00625266,3382.7,3382.6,0.73893]
[1642018286618,5.3566,3382.8,3382.6,2.38309211]
[1642018288119,5.3566,3382.8,3382.6,1.03893]
[1642018288362,3.22288617,3382.7,3381.3,2.21711]
[1642018288564,0.01240635,3382.6,3381.1,0.03817696]
[1642018288763,6.3582,3382.5,3381.4,0.00113684]
[1642018288962,6.6582,3382.5,3381.4,0.00113684]
[1642018289162,0.00454739,3382.4,3381.4,0.00113684]
[1642018289364,0.00454739,3382.4,3381.5,0.73912]
[1642018289561,6.6582,3382.5,3382.0,0.7391]
[1642018289562,0.00397897,3382.3,3382.0,0.7391]
[1642018289763,0.00397897,3382.3,3382.2,1.18171011]
[1642018289961,6.6582,3382.5,3382.2,1.18171011]
[1642018289962,6.6582,3382.5,3382.2,1.48171011]
[1642018290368,0.00454739,3382.4,3382.2,1.48171011]
[1642018290761,0.00397897,3382.3,3382.2,1.48171011]
[1642018291164,0.00397897,3382.3,3382.2,1.92514871]
[1642018291468,0.00397897,3382.3,3382.2,0.4434386]
[1642018291661,0.1182,3382.2,3382.0,0.4434494]
[1642018292108,0.00284212,3382.1,3382.0,0.4434494]
[1642018292507,0.00284212,3382.1,3382.0,1.63154882]
[1642018293110,0.00284212,3382.1,3382.0,1.93154882]
[1642018293612,0.00284212,3382.1,3382.0,2.81847972]
[1642018294617,1.38034396,3382.1,3382.0,1.6303803]
[1642018295015,1.38034396,3382.1,3382.0,1.1869309]
[1642018295016,2.88209029,3382.1,3382.0,1.1869309]
[1642018296479,1.38034396,3382.1,3382.0,1.1869309]
[1642018300331,3.63296346,3382.1,3382.0,1.1869309]
[1642018301337,2.25546162,3382.1,3382.0,1.1869309]
[1642018302143,0.00284212,3382.1,3382.0,1.1869309]
[1642018303393,1.51943249,3382.1,3382.0,1.1869309]
[1642018304382,0.00284212,3382.1,3382.0,1.1869309]
[1642018304583,0.00284212,3382.1,3382.0,1.3051309]
[1642018305987,0.00284212,3382.1,3382.0,5.0051309]
[1642018306189,0.00284212,3382.1,3382.0,1.3051309]
[1642018309416,1.03051053,3382.1,3382.0,1.3051309]
[1642018310320,0.00284212,3382.1,3382.0,1.3051309]
[1642018311765,0.00284212,3382.1,3382.0,1.1869309]
[1642018313570,0.00284212,3382.1,3382.0,2.67456472]
[1642018314371,0.00284212,3382.1,3382.0,1.1869309]
[1642018319379,0.00284212,3382.1,3382.0,1.21977224]
[1642018319778,0.00284212,3382.1,3382.0,1.1869309]
[1642018322014,2.54425878,3382.5,3382.1,0.3]
[1642018322216,1.51659037,3382.4,3382.3,0.73902]
[1642018322414,1.52113776,3382.4,3382.3,0.73902]
[1642018322615,1.52113776,3382.4,3382.3,1.03902]
[1642018323015,2.54880617,3382.4,3382.3,1.03902]
[1642018324224,0.00454739,3382.4,3382.3,1.03902]
[1642018325326,1.0322158,3382.4,3382.3,1.03902]
[1642018328977,2.54880617,3382.4,3382.3,1.03902]
[1642018329933,0.00454739,3382.4,3382.3,1.03902]
[1642018330330,1.0322158,3382.4,3382.3,1.03902]
[1642018331534,0.00454739,3382.4,3382.3,1.03902]
[1642018332339,5.51279628,3382.4,3382.2,0.4434095]
[1642018332539,3.00799088,3382.3,3381.9,0.88697]
[1642018332739,3.13016985,3382.3,3381.9,0.88697]
[1642018332939,0.00341055,3382.2,3381.9,0.88697]
[1642018333396,0.12104212,3382.1,3380.7,1.62064981]
[1642018333586,0.12104212,3382.1,3381.0,0.4436298]
[1642018333587,1.47864,3381.8,3381.0,0.4436298]
[1642018333789,1.47864,3381.8,3381.0,0.00341054]
[1642018333790,0.1182,3381.7,3381.0,0.00341054]
[1642018333987,2.99385806,3381.7,3381.0,0.00341054]
[1642018334287,1.40214767,3381.1,3381.0,0.00341054]
[1642018334485,1.70214767,3381.1,3381.0,0.00341054]
[1642018336288,4.46211316,3381.1,3380.9,0.00397896]
[1642018337131,4.46211316,3381.1,3380.9,0.30397896]
[1642018337329,4.46211316,3381.1,3380.9,0.00397896]
[1642018337529,1.02766841,3381.0,3380.9,0.00397896]
[1642018338534,1.02766841,3381.0,3380.9,0.30397896]
[1642018341970,1.02766841,3381.1,3380.9,0.30397896]
[1642018343774,1.02766841,3381.1,3380.9,1.04325206]
[1642018344619,1.02766841,3381.6,3380.9,1.04325206]
[1642018345019,1.32766841,3381.6,3381.2,0.6696279]
[1642018345419,1.32766841,3381.6,3381.3,0.00170527]
[1642018346020,1.32766841,3381.6,3381.1,0.00284211]
[1642018346623,1.02766841,3381.5,3381.4,0.3696305]
[1642018346822,1.02766841,3381.5,3381.4,0.6696305]
[1642018347023,1.02766841,3381.5,3381.4,0.67076734]
[1642018347425,1.02766841,3381.5,3381.4,0.78896734]
[1642018348125,1.02766841,3381.6,3381.4,0.78896734]
[1642018348390,1.02766841,3381.6,3381.5,0.1182]
[1642018352840,0.02766841,3381.6,3381.5,0.1182]
[1642018353439,0.02766841,3381.6,3381.5,3.7682]
[1642018353641,0.02766841,3381.6,3381.5,7.38512771]
[1642018354043,0.02766841,3381.6,3381.5,7.41515165]
[1642018355443,0.0022737,3382.0,3381.7,1.47804]
[1642018355646,0.0022737,3382.0,3381.8,2.82022651]
[1642018355873,0.00170528,3381.9,3381.8,3.18973071]
[1642018357480,0.00170528,3381.9,3381.8,3.30793071]
[1642018357676,0.00170528,3381.9,3381.8,4.78597071]
[1642018358978,0.00170528,3381.9,3381.8,4.41594932]
[1642018359180,0.00170528,3381.9,3381.8,4.40867708]
[1642018359620,0.00170528,3381.9,3381.8,4.29047708]
[1642018360024,0.00170528,3381.9,3381.8,1.8475442]
[1642018362424,0.00170528,3381.9,3381.8,4.61755791]
[1642018363025,0.00170528,3381.9,3381.8,1.8475442]
[1642018363481,0.00170528,3381.9,3381.7,4.3742683]
[1642018363482,2.45170528,3381.9,3381.7,1.0390083]
[1642018363675,0.1182,3381.8,3381.7,0.3]
[1642018363876,0.00113685,3381.8,3381.5,0.3696336]
[1642018364478,0.1182,3381.7,3381.5,0.3696336]
[1642018364878,0.1182,3381.7,3381.5,0.2196336]
[1642018365881,0.00113685,3381.8,3381.5,0.2196336]
[1642018369525,0.00113685,3381.8,3381.6,0.739153]
[1642018369727,0.00113685,3381.8,3381.6,1.478313]
[1642018369924,0.00113685,3381.8,3381.6,1.778313]
[1642018371666,0.00113685,3381.8,3381.6,1.039153]
[1642018371877,0.00113685,3381.8,3381.4,0.00113684]
[1642018372074,0.14043341,3381.7,3381.4,0.00113684]
[1642018372274,0.1182,3381.7,3381.4,0.00113684]
[1642018373375,0.3,3381.6,3381.4,0.00113684]
[1642018373674,0.1182,3381.5,3381.3,0.00170527]
[1642018374720,0.1182,3381.5,3381.4,0.3696172]
[1642018374922,1.61185768,3381.6,3381.3,0.00170527]
[1642018375122,1.61185768,3381.6,3381.4,0.00113684]
[1642018375324,1.61185768,3381.6,3381.3,0.00170527]
[1642018375526,1.31185768,3381.4,3381.3,0.00170527]
[1642018376026,1.31185768,3381.4,3381.3,1.11174212]
[1642018376426,1.31185768,3381.5,3381.4,0.7392]
[1642018376626,1.31185768,3381.5,3381.4,1.0392]
[1642018376826,1.31185768,3381.5,3381.4,1.77950174]
[1642018377227,0.1182,3381.7,3381.4,1.77950174]
[1642018377429,0.30113685,3381.8,3381.4,1.77950174]
[1642018377627,0.00113685,3381.8,3381.5,0.73917]
[1642018377831,0.00113685,3381.8,3381.5,1.4087501]
[1642018379775,0.00113685,3381.8,3381.5,0.3]
[1642018379978,0.00113685,3381.8,3381.5,0.4182]
[1642018380176,1.45075191,3382.0,3381.5,0.1182]
[1642018380376,1.45075191,3382.0,3381.6,0.00113684]
[1642018381179,1.45075191,3382.0,3381.6,0.30113684]
[1642018381477,0.73925,3381.9,3381.5,0.37131667]
[1642018381679,1.45075191,3382.0,3381.6,0.3]
[1642018381876,2.967714,3382.0,3381.6,0.30113685]
[1642018382715,2.667714,3382.0,3381.6,0.30113685]
[1642018382918,3.406944,3382.0,3381.6,0.30113685]
[1642018383818,3.406944,3382.0,3381.6,1.04033685]
[1642018384420,3.406944,3382.0,3381.6,0.30113685]
[1642018385969,1.47201177,3381.8,3381.6,0.30113685]
[1642018386770,1.89021177,3381.8,3381.6,0.30113685]
[1642018387875,6.66696209,3381.7,3381.6,0.30113685]
[1642018388076,6.78516209,3381.7,3381.6,0.00113685]
[1642018388377,10.17238001,3381.7,3380.9,0.00511581]
[1642018388576,0.73954,3381.4,3380.9,0.00511581]
[1642018388775,5.4988,3381.3,3380.2,0.00909477]
[1642018388975,5.6805,3381.3,3380.1,0.0096632]
[1642018389176,0.85785,3381.2,3380.1,0.0096632]
[1642018389375,1.29964306,3380.5,3380.1,1.45377741]
[1642018389621,2.33920306,3380.5,3380.1,0.0096632]
[1642018389820,2.33920306,3380.5,3380.2,0.00909477]
[1642018390022,2.33920306,3380.5,3380.1,0.0096632]
[1642018390225,2.33920306,3380.5,3380.2,0.1183]
[1642018390426,1.03956,3380.5,3380.1,0.0096632]
[1642018390623,0.3,3380.5,3380.3,0.00852635]
[1642018390823,0.3,3380.8,3380.1,0.1279632]
[1642018391024,0.1183,3380.9,3380.1,0.1279632]
[1642018391226,0.1183,3380.9,3380.2,0.00909477]
[1642018391624,1.63331732,3380.9,3380.2,0.00909477]
[1642018392225,0.73952,3380.8,3380.2,0.00909477]
[1642018392526,1.03952,3380.8,3380.2,0.30909477]
[1642018392731,2.578522,3380.8,3380.2,0.30909477]
[1642018392926,1.21024827,3380.7,3380.3,0.00852635]
[1642018393367,2.74925027,3380.7,3380.3,0.00852635]
[1642018393774,0.73956,3380.6,3380.4,0.00346651]
[1642018394174,0.73956,3380.6,3380.5,0.0073895]
[1642018394474,2.278562,3380.6,3380.5,0.0073895]
[1642018394775,1.539002,3380.6,3380.5,0.0073895]
[1642018396275,1.539002,3380.8,3380.5,0.0073895]
[1642018396477,1.539002,3380.8,3380.5,0.3771265]
[1642018397024,1.539002,3380.8,3380.4,0.04938759]
[1642018397025,0.00555603,3380.6,3380.4,0.04938759]
[1642018397222,3.4183,3380.5,3380.4,0.04938759]
[1642018397423,5.04027449,3380.5,3380.3,0.00674501]
[1642018397626,1.74027449,3380.5,3380.4,0.00113685]
[1642018398426,3.27927649,3380.5,3380.4,0.00113685]
[1642018398829,3.27927649,3380.5,3380.4,0.00482002]
[1642018398830,3.16097649,3380.5,3380.4,0.00482002]
[1642018399931,3.27927649,3380.5,3380.4,0.00482002]
[1642018401985,3.16097649,3380.5,3380.4,0.00482002]
[1642018405420,3.16097649,3380.5,3380.4,0.00286002]
[1642018407923,3.16097649,3380.5,3380.4,0.30286002]
[1642018411200,3.16097649,3380.5,3380.4,0.00286002]
[1642018413918,3.16097649,3380.5,3380.3,0.00702254]
[1642018415785,1.539002,3380.4,3380.3,1.04649254]
[1642018416374,1.539002,3380.4,3380.3,1.16479254]
[1642018416574,1.539002,3380.4,3380.3,1.53453384]
[1642018416877,1.18203114,3380.5,3380.3,0.42532254]
[1642018417278,1.18203114,3380.5,3380.3,0.12532254]
[1642018417478,1.18203114,3380.5,3380.4,0.3]
[1642018417678,1.539002,3380.4,3380.3,0.12532254]
[1642018418683,1.539002,3380.4,3380.3,0.30363173]
[1642018418880,1.539002,3380.4,3380.3,0.00363173]
[1642018420926,1.839002,3380.4,3380.3,0.00363173]
[1642018422430,3.939002,3380.4,3380.2,0.69667661]
[1642018422629,1.539002,3380.4,3380.2,0.69667661]
[1642018423031,1.539002,3380.4,3380.2,1.43606661]
[1642018423670,0.00113685,3380.6,3380.4,0.73935]
[1642018424074,0.00113685,3380.6,3380.4,1.03935]
[1642018426577,0.00113685,3380.6,3380.4,1.4090335]
[1642018427437,0.00113685,3380.6,3380.3,0.00366216]
[1642018427638,0.15096774,3380.5,3380.3,0.00366216]
[1642018427840,3.3484514,3380.5,3380.3,0.00366216]
[1642018428040,2.75258576,3380.4,3380.3,0.00366216]
[1642018428339,0.70840356,3380.5,3380.3,0.00366216]
[1642018428340,0.59010356,3380.5,3380.3,0.00366216]
[1642018428738,0.59010356,3380.5,3379.8,1.55690664]
[1642018428739,4.26750774,3380.4,3379.8,1.55690664]
[1642018429040,1.50403759,3379.9,3379.8,1.55690664]
[1642018429439,1.50403759,3379.9,3379.8,1.56031718]
[1642018429838,1.50403759,3379.9,3379.8,1.86031718]
[1642018430873,1.50403759,3379.9,3379.8,0.30341054]
[1642018431075,3.04303959,3379.9,3379.8,0.30341054]
[1642018432177,3.04303959,3379.9,3379.8,0.96872863]
[1642018432376,3.04303959,3379.9,3379.8,2.40818021]
[1642018432677,3.04303959,3379.9,3379.8,0.96872863]
[1642018433478,1.539002,3379.9,3379.8,0.96872863]
[1642018433679,1.539002,3379.9,3379.8,5.19956859]
[1642018433878,1.539002,3379.9,3379.8,5.20353208]
[1642018435125,1.54655492,3380.2,3379.8,5.20353208]
[1642018435325,1.54655492,3380.2,3380.0,1.1091584]
[1642018435525,1.54655492,3380.2,3380.0,1.4091584]
[1642018435727,1.54655492,3380.2,3380.1,0.00170527]
[1642018437431,1.54655492,3380.2,3380.1,0.66702336]
[1642018437633,1.54655492,3380.2,3380.1,0.96702336]
[1642018438682,1.54655492,3380.2,3380.1,0.97098056]
[1642018439786,1.54655492,3380.2,3380.1,1.08928056]
[1642018440888,1.54655492,3380.2,3380.1,0.97098056]
[1642018442930,1.54655492,3380.2,3380.1,0.30566247]
[1642018443228,1.54655492,3380.2,3380.1,0.00566247]
[1642018444436,1.54655492,3380.2,3380.1,0.54539217]
[1642018444635,1.54655492,3380.2,3380.1,0.84539217]
[1642018446079,1.54655492,3380.2,3380.1,2.22696914]
[1642018446778,1.54655492,3380.2,3380.1,3.70582914]
[1642018449182,1.54655492,3380.2,3380.1,3.16609944]
[1642018449543,1.54655492,3380.2,3380.1,1.78452247]
[1642018449935,1.54655492,3380.2,3380.1,2.33663709]
[1642018451437,3.56817629,3380.2,3380.1,2.33663709]
[1642018453775,3.56817629,3380.2,3380.1,0.85777709]
[1642018455180,3.56817629,3380.2,3380.1,0.00566247]
[1642018456781,3.56817629,3380.2,3380.1,0.49120265]
[1642018457036,3.56817629,3380.2,3380.1,1.53074265]
[1642018457833,3.56817629,3380.2,3380.1,1.04520247]
[1642018458533,3.56817629,3380.2,3380.1,0.00566247]
[1642018458733,3.68647629,3380.2,3380.1,0.00566247]
[1642018458936,3.56817629,3380.2,3380.1,0.00566247]
[1642018459233,7.96817629,3380.2,3380.1,0.00566247]
[1642018459435,9.00788629,3380.2,3380.1,0.00566247]
[1642018459640,9.12618629,3380.2,3380.1,0.00566247]
[1642018460336,11.37618629,3380.2,3380.1,0.00566247]
[1642018460540,14.824103,3380.2,3380.1,0.00566247]
[1642018460976,17.8279228,3380.2,3380.1,0.00566247]
[1642018461177,15.5779228,3380.2,3380.1,0.00566247]
[1642018461977,16.0029228,3380.2,3380.1,0.00566247]
[1642018462577,1.47942,3380.0,3379.2,1.4794221]
[1642018462780,2.75858605,3379.9,3379.2,1.7794221]
[1642018462979,1.37094928,3379.3,3379.2,1.7794221]
[1642018463377,1.37094928,3379.3,3379.2,1.78453791]
[1642018463578,1.37094928,3379.3,3379.2,1.04483791]
[1642018464278,3.39257065,3379.3,3379.2,1.04483791]
[1642018465531,2.02162137,3379.3,3379.2,1.16313791]
[1642018465932,1.63483424,3380.0,3379.2,1.16313791]
[1642018465933,1.63483424,3380.0,3379.6,0.73952]
[1642018466230,1.63483424,3380.0,3379.8,0.3697575]
[1642018466530,1.63483424,3380.0,3379.9,0.11943684]
[1642018466830,1.63483424,3380.0,3379.9,1.63035944]
[1642018467631,0.1183,3380.0,3379.9,1.63035944]
[1642018468885,0.1183,3380.0,3379.9,1.63367059]
[1642018470095,4.25,3380.0,3379.9,0.00444799]
[1642018470397,0.1183,3380.3,3379.9,0.00444799]
[1642018470590,5.4639,3380.4,3379.9,0.00444799]
[1642018470591,6.20347,3380.4,3379.9,0.00444799]
[1642018470793,6.20347,3380.4,3379.9,0.12274799]
[1642018470992,0.00113685,3380.3,3379.9,0.00444799]
[1642018471189,1.35253092,3380.2,3380.1,1.36719391]
[1642018471396,1.35253092,3380.2,3380.1,1.66719391]
[1642018473834,1.35253092,3380.2,3380.1,1.67050087]
[1642018474236,1.35253092,3380.2,3380.1,0.30330696]
[1642018474434,1.35253092,3380.2,3380.1,0.00330696]
[1642018477887,2.82704994,3380.2,3380.1,0.00330696]
[1642018478486,1.35253092,3380.2,3380.1,0.00330696]
[1642018478685,1.35253092,3380.2,3380.0,0.59914406]
[1642018480928,1.65253092,3380.2,3380.0,0.59914406]
[1642018481729,1.35253092,3380.2,3380.0,0.59914406]
[1642018485786,1.35253092,3380.2,3380.0,0.30330696]
[1642018485989,1.35253092,3380.2,3380.0,0.59913226]
[1642018486689,2.23445251,3380.1,3380.0,0.59913226]
[1642018486884,2.23445251,3380.1,3380.0,0.71743226]
[1642018487740,2.23445251,3380.1,3380.0,0.42160696]
[1642018489839,3.75098675,3380.1,3380.0,0.42160696]
[1642018490142,6.4523231,3380.1,3380.0,0.30330696]
[1642018490789,6.4523231,3380.1,3380.0,0.00330696]
[1642018490987,6.8706231,3380.1,3380.0,0.00330696]
[1642018491390,5.35408886,3380.1,3380.0,0.00330696]
[1642018492595,7.62889022,3380.1,3380.0,0.00330696]
[1642018493493,5.35408886,3380.1,3380.0,0.00330696]
[1642018493695,5.35408886,3380.1,3379.1,0.1183]
[1642018493696,1.51650683,3379.5,3379.1,0.1183]
[1642018493898,1.41598481,3379.2,3379.1,0.1183]
[1642018495734,3.65043732,3379.2,3379.1,0.1183]
[1642018496134,3.65043732,3379.2,3379.0,0.5959052]
[1642018496335,3.65043732,3379.2,3379.0,0.7142052]
[1642018496736,3.65043732,3379.2,3379.0,0.75369841]
[1642018496936,3.65043732,3379.2,3379.0,0.7142052]
[1642018497736,3.65043732,3379.2,3379.0,1.86662526]
[1642018497936,2.23445251,3379.1,3379.0,1.86662526]
[1642018498392,2.23445251,3379.1,3379.0,2.57636587]
[1642018498599,2.23445251,3379.1,3379.0,5.16493044]
[1642018498796,2.23445251,3379.1,3379.0,7.96493044]
[1642018499396,5.219,3379.6,3379.3,0.2958221]
[1642018499596,5.219,3379.6,3379.4,3.47498062]
[1642018499802,5.219,3379.6,3379.5,2.59480884]
[1642018500004,0.1183,3379.8,3379.5,2.59708254]
[1642018500202,0.1183,3379.8,3379.5,2.74674062]
[1642018500398,1.51766359,3380.1,3379.6,0.00170527]
[1642018500600,1.51766359,3380.1,3379.8,0.2957938]
[1642018500804,1.51766359,3380.1,3379.9,2.81392867]
[1642018501004,0.00113685,3380.1,3379.9,2.81392867]
[1642018501208,0.00113685,3380.1,3379.9,0.1183]
[1642018501606,0.00113685,3380.1,3379.9,1.8929137]
[1642018502033,0.00113685,3380.1,3380.0,0.3]
[1642018502233,3.00113685,3380.1,3380.0,4.5183]
[1642018502434,3.00113685,3380.1,3380.0,0.4183]
[1642018503837,3.00113685,3380.1,3380.0,0.42162]
[1642018505438,3.00113685,3380.1,3380.0,0.30332]
[1642018507684,3.00113685,3380.1,3380.0,2.80332]
[1642018508283,3.00113685,3380.1,3380.0,0.30332]
[1642018508485,3.00113685,3380.1,3380.0,0.33513014]
[1642018509388,3.00113685,3380.1,3380.0,0.38363818]
[1642018509666,3.00113685,3380.1,3380.0,3.13214622]
[1642018510864,0.13622527,3380.1,3380.0,10.37948736]
[1642018511062,1.51652674,3380.5,3380.1,6.65]
[1642018511272,1.51652674,3380.5,3380.3,0.9609855]
[1642018511462,1.51652674,3380.5,3380.4,6.725]
[1642018511665,1.51652674,3380.5,3380.4,8.18308738]
[1642018511861,1.51880043,3380.5,3380.4,8.18308738]
[1642018512061,1.51880043,3380.5,3380.4,9.70946836]
[1642018512460,1.51880043,3380.5,3380.4,3.40946836]
[1642018512461,0.00227369,3380.5,3380.4,3.40946836]
[1642018512664,0.00227369,3380.5,3380.4,0.88308738]
[1642018512864,0.00227369,3380.5,3380.4,0.45808738]
[1642018513689,0.00227369,3380.5,3380.4,4.63063519]
[1642018513891,0.00227369,3380.5,3380.4,4.63394513]
[1642018514789,0.00227369,3380.5,3380.4,4.73096121]
[1642018514991,0.00227369,3380.5,3380.4,6.15596121]
[1642018515392,1.51652674,3381.1,3380.5,6.65]
[1642018515591,1.51652674,3381.1,3380.6,4.33653613]
[1642018515794,0.00284211,3381.0,3380.8,0.73919]
[1642018515994,0.00284211,3381.0,3380.9,2.82700175]
[1642018516196,1.51652674,3381.2,3380.9,2.8659437]
[1642018517239,1.51652674,3381.2,3381.0,0.73914]
[1642018517437,0.00454738,3381.3,3381.0,0.99803126]
[1642018517639,0.00454738,3381.3,3381.0,1.29803126]
[1642018517841,0.00397896,3381.2,3381.0,3.94497687]
[1642018518040,0.00397896,3381.2,3381.1,2.63714143]
[1642018518240,5.2673,3381.4,3381.1,2.68608371]
[1642018518441,5.2673,3381.4,3381.2,0.9609574]
[1642018518642,0.00454738,3381.3,3381.2,1.29995607]
[1642018519448,3.00454738,3381.3,3381.2,1.29995607]
[1642018519642,5.20457974,3381.3,3381.2,1.29995607]
[1642018520042,5.20457974,3381.3,3381.2,1.34846411]
[1642018520244,1.51652674,3381.6,3381.3,6.65]
[1642018520442,1.51652674,3381.6,3381.4,2.1248074]
[1642018520646,0.00113685,3381.5,3381.4,2.46178193]
[1642018520887,0.00113685,3381.5,3381.4,19.76178193]
[1642018521493,1.48611877,3381.6,3381.4,21.05682726]
[1642018521690,2.27479011,3381.9,3381.7,18.06227538]
[1642018521894,2.27479011,3381.9,3381.8,7.1932]
[1642018522094,0.1182,3382.1,3381.9,6.65]
[1642018522293,0.1182,3382.1,3382.0,10.18539547]
[1642018522492,0.1182,3382.1,3382.0,12.50029487]
[1642018522693,0.1182,3382.1,3382.0,12.80029487]
[1642018522895,0.1182,3382.1,3382.0,13.80029487]
[1642018523693,0.1182,3382.1,3382.0,14.53913487]
[1642018523894,0.1182,3382.1,3382.0,6.74702859]
[1642018524096,0.1182,3382.1,3382.0,3.63663312]
[1642018524552,0.1182,3382.1,3382.0,6.33117151]
[1642018525357,0.1182,3382.1,3382.0,6.37967955]
[1642018525757,0.1182,3382.1,3382.0,23.72818759]
[1642018526757,0.1182,3382.1,3382.0,23.72595645]
[1642018528382,5.2594,3383.1,3382.1,6.65]
[1642018528589,0.1182,3382.8,3382.6,0.73882]
[1642018528786,0.00738951,3382.8,3382.6,0.7731739]
[1642018528986,0.00738951,3382.8,3382.6,3.80735089]
[1642018529187,0.00738951,3382.8,3382.7,5.2428189]
[1642018529389,0.00738951,3382.8,3382.7,6.79161394]
[1642018529587,0.00738951,3382.8,3382.7,10.84161394]
[1642018529788,0.00738951,3382.8,3382.7,7.79161394]
[1642018530394,0.00738951,3382.8,3382.7,3.58032946]
[1642018530789,0.00738951,3382.8,3382.7,3.6288375]
[1642018530988,0.00738951,3382.8,3382.7,3.67734554]
[1642018531289,0.00738951,3382.8,3382.7,6.36522269]
[1642018531689,0.00738951,3382.8,3382.7,3.67734554]
[1642018533329,0.00738951,3382.8,3382.7,1.12734554]
[1642018533533,0.00738951,3382.8,3382.7,3.72734554]
[1642018533934,0.00738951,3382.8,3382.7,3.73059771]
[1642018536226,0.00738951,3382.8,3382.7,6.40624421]
[1642018536425,0.00738951,3382.8,3382.7,3.73059771]
[1642018538427,0.00738951,3382.8,3382.7,6.39124244]
[1642018538631,0.00738951,3382.8,3382.7,6.41915432]
[1642018540251,0.00738951,3382.8,3382.7,0.10026825]
[1642018540849,0.12558951,3382.8,3382.7,0.10026825]
[1642018541048,0.00738951,3382.8,3382.7,0.10026825]
[1642018541452,1.96710069,3382.8,3382.7,0.10026825]
[1642018541648,1.96710069,3382.8,3382.4,0.73893]
[1642018541649,1.23390939,3382.7,3382.4,0.73893]
[1642018542052,0.00625266,3382.6,3382.4,1.03893]
[1642018542252,0.00625266,3382.6,3382.4,1.07602538]
[1642018542450,0.00568424,3382.5,3382.4,1.07602538]
[1642018543285,0.00568424,3382.5,3382.4,5.12602538]
[1642018543790,0.00568424,3382.5,3382.4,6.12602538]
[1642018543990,0.00568424,3382.5,3382.4,23.42602538]
[1642018545091,0.00568424,3382.5,3382.4,23.85102538]
[1642018546494,0.00568424,3382.5,3382.4,23.96922538]
[1642018548736,0.00568424,3382.5,3382.4,23.85469348]
[1642018550541,0.00568424,3382.5,3382.4,23.5175981]
[1642018550994,0.00568424,3382.5,3382.4,23.8175981]
[1642018552294,0.00568424,3382.5,3382.4,23.9357981]
[1642018553301,0.00568424,3382.5,3382.4,23.8175981]
[1642018556446,1.88686577,3382.5,3382.4,23.8175981]
[1642018556646,1.78686577,3382.5,3382.4,0.7425981]
[1642018556844,1.78686577,3382.5,3382.4,0.0036681]
[1642018558046,1.78686577,3382.5,3382.4,0.7426181]
[1642018558587,2.52578247,3382.5,3382.4,0.7426181]
[1642018558785,2.52578247,3382.5,3382.4,0.0036681]
[1642018562349,2.64398247,3382.5,3382.4,0.0036681]
[1642018563553,2.52578247,3382.5,3382.4,0.0036681]
[1642018563759,2.52578247,3382.5,3382.2,1.0]
[1642018563955,2.86471797,3382.4,3382.1,15.0056681]
[1642018564156,6.65,3382.3,3382.1,0.00120495]
[1642018564457,3.28291797,3382.4,3382.1,0.00120495]
[1642018564458,10.0591135,3382.2,3382.1,0.00120495]
[1642018564656,10.2409135,3382.2,3382.1,0.00120495]
[1642018564956,10.3591135,3382.2,3382.1,0.0023418]
[1642018565155,11.57631852,3382.2,3382.1,0.0023418]
[1642018565357,10.3462899,3382.1,3381.0,0.73926]
[1642018565555,3.47085989,3382.0,3381.0,0.73926]
[1642018565794,0.73932,3381.5,3381.1,0.00568423]
[1642018565992,2.99402515,3381.4,3381.1,0.00568423]
[1642018566197,0.1182,3381.7,3380.7,0.74728793]
[1642018566401,1.54698954,3381.5,3380.7,0.74728793]
[1642018566598,2.99010242,3381.4,3381.1,1.13966052]
[1642018566800,0.7393635,3381.4,3381.1,1.13966052]
[1642018566998,0.7393635,3381.4,3381.2,0.00511581]
[1642018567504,7.41747621,3381.3,3381.2,0.00511581]